Cogmind - Beta 16 @@@ ROGUE MODE // 2025.11.09 @ 10:51:28 Player: szymekc Result: Destroyed by LB-YU0(R) with Subdweller Laser Performance ------------- Evolutions (0) 0 Regions Visited (3) 600 Robots Destroyed (44) 220 Value Destroyed (1027) 1027 Prototype IDs (2) 40 Alien Tech Used (0) 0 Bonus (0) 0 TOTAL SCORE: 1887 Bonus ------- None Cogmind --------- Core Integrity 0/250 Matter 201/300 Energy 119/200 System Corruption 0% Temperature Cool (6) Movement Treading (480) Ox4 Location -10/Subcaves Parts ------- > --- POWER (1) -------- Subdweller Power Source > --- PROPULSION (2) --- Light Treads Subdweller Monowheel > --- UTILITY (2) ------ Huge Storage Unit Makeshift Light Armor Plating > --- WEAPON (2) ------- Subdweller Laser Light Cannon > --- INVENTORY (25) --- Subdweller Power Source Subdweller Power Source Makeshift Leg Subdweller Monowheel Subdweller Monowheel Medium Storage Unit Large Matter Pod (32) Subdweller Optics Subdweller Optics Subdweller Optics Heavy Riot Gun Subdweller Laser Beam Cannon Subdweller Machine Gun Light Cannon Light Cannon Battle Cannon Grenade Launcher Grenade Launcher Multitool Peak State ------------ > --- POWER ------------ Light Nuclear Core > --- PROPULSION ------- Light Treads Subdweller Monowheel > --- UTILITY ---------- Huge Storage Unit Makeshift Light Armor Plating > --- WEAPON ----------- Subdweller Laser Subdweller Laser > --- INVENTORY -------- Subdweller Power Source Subdweller Power Source Subdweller Power Source Makeshift Leg Subdweller Monowheel Subdweller Monowheel Medium Storage Unit Large Matter Pod Subdweller Optics Subdweller Optics Subdweller Optics Heavy Riot Gun Subdweller Laser Subdweller Laser Beam Cannon Subdweller Machine Gun Light Cannon Light Cannon Light Cannon Battle Cannon Grenade Launcher Grenade Launcher Multitool [Rating: 19] Favorites ----------- Power Ion Engine Engine Ion Engine Power Core Light Nuclear Core Propulsion Light Treads Treads Light Treads Wheel Subdweller Monowheel Utility Seismic Detector Device Seismic Detector Storage Medium Storage Unit Protection Makeshift Light Armor Plating Weapon Light Cannon Energy Gun Subdweller Laser Energy Cannon Beam Cannon Ballistic Cannon Light Cannon Launcher Grenade Launcher Build | -11 -10 -10 -10 ------- Run | Yrd Mat Min Sub Slots Evolved . | . . . . Power . | . . . . Propulsion . | . . . . Utility . | . . . . Weapon . | . . . . Parts Attached 30 | 5 14 1 10 Power 4 | 1 1 . 2 Engine 3 | 1 1 . 1 Core 1 | . . . 1 Reactor . | . . . . Propulsion 4 | 2 . 1 1 Treads 3 | 2 . 1 . Leg . | . . . . Wheel 1 | . . . 1 Hover . | . . . . Flight . | . . . . Utility 6 | . 3 . 3 Device 3 | . 2 . 1 Storage 2 | . 1 . 1 Processor . | . . . . Hackware . | . . . . Protection 1 | . . . 1 Artifact . | . . . . Weapon 16 | 2 10 . 4 Energy Gun 8 | 2 3 . 3 Energy Cannon 2 | . 2 . . Ballistic Gun . | . . . . Ballistic Cannon 3 | . 2 . 1 Launcher 3 | . 3 . . Special Weapon . | . . . . Impact Weapon . | . . . . Slashing Weapon . | . . . . Piercing Weapon . | . . . . Special Melee Weapon . | . . . . Unidentified Prototypes . | . . . . Parts Lost 8 | . 2 . 6 Power 1 | . . . 1 Propulsion 1 | . . . 1 Utility 2 | . . . 2 Weapon 4 | . 2 . 2 Highest Loss Streak 2 | . 2 . 2 To Critical Strikes . | . . . . Average Backups 11 | 1 7 10 16 Power 1 | . 1 1 1 Propulsion 1 | . . . 1 Utility 3 | . 1 3 4 Weapon 5 | . 4 5 7 Tool/Special . | . . . . Unused Backups 16 | . 1 . 15 Power 2 | . . . 2 Propulsion 3 | . . . 3 Utility 4 | . . . 4 Weapon 6 | . 1 . 5 Tool/Special 1 | . . . 1 Average Slot Usage (%) 97 | . 96 100 98 Engine 9 | . 14 14 5 Core 4 | . . . 8 Treads 26 | . 28 28 24 Wheel 1 | . . . 3 Device 12 | . 16 14 9 Storage 11 | . 8 14 14 Protection 1 | . . . 2 Energy Gun 9 | . 7 . 12 Energy Cannon 4 | . 11 . . Ballistic Cannon 12 | . 4 27 13 Launcher 2 | . 4 . 1 Peak Build Rating 19 | 5 8 8 19 Average Rating 9 | 4 7 8 12 On Entrance 5 | . 5 8 8 Avg Prop Armor Cover (%) 12 | . . . 12 Naked Turns . | . . . . Heaviest Build 97 | 9 22 22 97 Greatest Support 40 | 40 40 40 40 Greatest Overweight (x) 4 | . . . 4 Average Overweight (x) . | . . . 1 Largest Inventory Capacity 25 | 5 10 10 25 Average Capacity 14 | 5 7 10 20 Most Carried 23 | 2 10 10 23 Average Carried 11 | 1 7 10 16 Final Capacity 25 | 5 10 10 25 Final Carried 20 | 2 10 10 20 Class Distribution -------------------- 92% | Mutant 7% | Scavenger-Mutant Dominant Class ---------------- Mutant | -10/Materials Mutant | -10/Mines Mutant | -10/Subcaves Resources | -11 -10 -10 -10 ----------- Run | Yrd Mat Min Sub Matter Collected 1231 | 198 309 253 471 Remotely . | . . . . Salvage Created 1236 | 200 501 152 383 Parts 79 | 11 29 10 29 Haulers Intercepted 2 | . 2 . . Recyclers Shooed 2 | 1 . 1 . Parts Field Recycled . | . . . . Retrieved Matter . | . . . . Parts Self-Destructed 10 | . . . 10 Prevented . | . . . . Parts Restored . | . . . . Kills | -11 -10 -10 -10 ------- Run | Yrd Mat Min Sub Combat Hostiles Destroyed 30 | . 14 6 10 Guns 5 | . 1 . 4 Cannons 6 | . . 4 2 AOE 19 | . 13 2 4 Classes Destroyed 12 | 3 6 1 2 Worker 2 | 2 . . . Builder 1 | . . 1 . Tunneler 4 | 4 . . . Hauler 2 | . 2 . . Recycler 2 | 1 . 1 . Mechanic 1 | . 1 . . Operator 1 | . 1 . . Watcher 1 | . 1 . . Swarmer 11 | . 3 4 4 Grunt 13 | . 11 2 . Artisan 1 | . . . 1 Subdweller 6 | . . . 6 Best Kill Streak 7 | 7 3 4 4 Combat Bots Only 4 | . 3 3 4 Max Kills in Single Turn 4 | 1 2 2 4 Gunslinging . | . . . . Exploded 4 | . 2 1 4 Melee . | . . . . Uniques/NPCs Destroyed . | . . . . Combat | -11 -10 -10 -10 -------- Run | Yrd Mat Min Sub Hostile Shots Fired 111 | . 27 28 56 Missed 32 | . 10 9 13 Hits 79 | . 17 19 43 Projectile 79 | . 17 19 43 Critical Strikes 3 | . 2 . 1 Damage Taken 1436 | . 341 200 895 Core 263 | . 32 34 197 Absorbed by Shields . | . . . . Core Remaining (%) 100 | 100 . . . Volleys Fired 148 | 16 33 16 83 Largest 2 | 2 2 2 2 Hottest 120 | 80 120 60 120 Shots Fired 262 | 32 65 32 133 Gun 132 | 32 42 . 58 Cannon 96 | . 4 24 68 Launcher 34 | . 19 8 7 Special . | . . . . Kinetic 79 | . . 24 55 Thermal 75 | . 4 . 71 Explosive 34 | . 19 8 7 Electromagnetic 74 | 32 42 . . Robot Hit Streak 18 | 8 8 4 18 Robot Miss Streak 6 | 4 3 6 3 Penetration Max . | . . . . Secondary Targets . | . . . . Shots Hit Robots 133 | 17 36 14 66 Core Hits 77 | 8 31 13 25 Critical Kills . | . . . . Critical Parts Destroyed . | . . . . Critical Strikes 5 | . 2 1 2 Blast 3 | . . 1 2 Corrupt 2 | . 2 . . Melee Attacks . | . . . . Impact . | . . . . Slashing . | . . . . Piercing . | . . . . Sneak Attacks . | . . . . Combat Hostiles . | . . . . Follow-up Attacks . | . . . . Damage Inflicted 3758 | 279 1471 560 1448 Guns 1207 | 233 341 . 633 Cannons 770 | . 36 159 575 Explosions 1754 | 46 1094 374 240 Melee . | . . . . Ramming 27 | . . 27 . Kinetic 520 | . . 159 361 Thermal 951 | 46 58 . 847 Explosive 1686 | . 1072 374 240 Electromagnetic 574 | 233 341 . . Impact . | . . . . Slashing . | . . . . Piercing . | . . . . Highest Corruption . | . . . . Average Corruption . | . . . . Corruption Purged . | . . . . Corruption Blocked . | . . . . Overload Shots . | . . . . Overflow Damage 16 | . 2 1 13 Projectiles . | . . . . Explosions 16 | . 2 1 13 Melee . | . . . . Knockbacks 4 | . . 3 1 Impact . | . . . . Kinetic 3 | . . 2 1 Secondary 1 | . . 1 . Self-Inflicted Damage 175 | . 130 . 45 Shots 7 | . 5 . 2 Rammed 3 | . . 3 . Targets Rammed 3 | . . 3 . Kicked . | . . . . Crushed . | . . . . Highest Temperature 216 | 216 120 51 78 Average Temperature 50 | 88 41 30 28 Received Heat Transfer 381 | . 156 69 156 Siege Activations . | . . . . Martial Activations . | . . . . Shielding Activations . | . . . . Robots Disrupted . | . . . . Combat Hostiles . | . . . . Robots Corrupted 1 | . 1 . . Combat Hostiles . | . . . . Parts Fried 5 | 2 3 . . Impact Corruptions . | . . . . Robots Melted . | . . . . Combat Hostiles . | . . . . Parts Melted 2 | . 1 . 1 Heat Transferred 1443 | 100 124 . 1219 Parts Sabotaged . | . . . . Parts Stolen . | . . . . Parts Stripped . | . . . . Power Chain Reactions 2 | 1 1 . . Alert | -11 -10 -10 -10 ------- Run | Yrd Mat Min Sub Maximum Alert Level 1 | . 1 . . Low Security (%) 51 | 100 24 100 . Level 1 48 | . 75 . . Level 2 . | . . . . Level 3 . | . . . . Level 4 . | . . . . Level 5 . | . . . . High Security . | . . . . Max Security . | . . . . Peak Influence 350 | 20 350 86 . Initial 81 | . 9 81 . Average 159 | 3 229 39 . Influence Increases 1078 | 35 725 208 110 Destroy 0b10 Robot/C 480 | . 280 120 80 Destroy 0b10 Robot/NC 70 | 35 25 10 . Destroy Leader 86 | . 56 30 . Successful Hack 39 | . 39 . . Select Force Hacks 60 | . 60 . . Disable Machine 150 | . 150 . . Destroy Structure 118 | . 100 18 . Lose Combat Pursuer 75 | . 15 30 30 Influence Decreases 1009 | 20 531 405 53 Entered New Map 141 | . 6 128 7 Time Decay 828 | 20 505 277 26 Lost Part 40 | . 20 . 20 Squads Dispatched 5 | . 5 . . Investigation 4 | . 4 . . Extermination . | . . . . Reinforcement 1 | . 1 . . Assault . | . . . . Garrison . | . . . . Intercept . | . . . . Searches Triggered . | . . . . Construction Impeded . | . . . . Haulers Reinforced . | . . . . Active Scanning Responses . | . . . . Cargo Convoy Interrupts . | . . . . Stealth | -11 -10 -10 -10 --------- Run | Yrd Mat Min Sub Distress Signals 1 | . 1 . . Communications Jammed . | . . . . Distress Signals . | . . . . Times Spotted 42 | . 22 7 13 Peak Tracking Total 6 | . 4 3 6 Tactical Retreats 3 | . 1 1 1 Traps | -11 -10 -10 -10 ------- Run | Yrd Mat Min Sub Traps Triggered 2 | . 2 . . Indirectly . | . . . . Trap Hack Attempts . | . . . . Triggered . | . . . . Disarmed . | . . . . Reprogrammed . | . . . . Reused . | . . . . Traps Extracted . | . . . . Installed . | . . . . Triggered . | . . . . Machines | -11 -10 -10 -10 ---------- Run | Yrd Mat Min Sub Machines Disabled 11 | . 10 . 1 Max in Single Turn 2 | . 2 . 1 Machines Repaired . | . . . . Machines Dismantled . | . . . . Machines Sabotaged . | . . . . Overloaded Fab Kills . | . . . . Hacking | -11 -10 -10 -10 --------- Run | Yrd Mat Min Sub Machines Accessed 9 | . 9 . . Terminals 7 | . 7 . . Fabricators . | . . . . Repair Stations . | . . . . Recycling Units 2 | . 2 . . Scanalyzers . | . . . . Garrison Access . | . . . . Total Hacks 30 | . 30 . . Successful 18 | . 18 . . Failed 12 | . 12 . . Catastrophic 3 | . 3 . . Database Lockouts . | . . . . Manual 21 | . 21 . . Terminals 27 | . 27 . . Fabricators . | . . . . Repair Stations . | . . . . Recycling Units 3 | . 3 . . Scanalyzers . | . . . . Garrison Access . | . . . . Terminal Hacks 8 | . 8 . . Robot Analysis 1 | . 1 . . Prototype ID Bank 1 | . 1 . . Emergency Access Points 1 | . 1 . . Terminal Index 1 | . 1 . . Recycling Unit Index 1 | . 1 . . Hauler Manifests 1 | . 1 . . Registered Components 1 | . 1 . . Registered Prototypes 1 | . 1 . . Fabricator Hacks . | . . . . Repair Station Hacks . | . . . . Recycling Unit Hacks . | . . . . Scanalyzer . | . . . . Garrison Access Hacks . | . . . . Unauthorized Hacks 10 | . 10 . . Terminals 8 | . 8 . . Botnet 2 | . 2 . . Skim 6 | . 6 . . Fabricators . | . . . . Repair Stations . | . . . . Recycling Units 2 | . 2 . . Tunnel 2 | . 2 . . Scanalyzers . | . . . . Garrison Access . | . . . . Data Cores Recovered . | . . . . Used . | . . . . Hacking Detections 8 | . 8 . . Full Trace Events . | . . . . Feedback Events . | . . . . Feedback Blocked . | . . . . Robot Schematics Acquired . | . . . . Robots Built . | . . . . Authchips . | . . . . Time . | . . . . Total Robot Build Rating . | . . . . Part Schematics Acquired . | . . . . Parts Built . | . . . . Authchips . | . . . . Time . | . . . . Total Part Build Rating . | . . . . Part Studies Acquired . | . . . . Parts Repaired . | . . . . Time . | . . . . Parts Recycled . | . . . . Recycled Matter . | . . . . Retrieved Matter . | . . . . Retrieved Components . | . . . . Parts Scanalyzed . | . . . . Part Schematics Acquired . | . . . . Parts Damaged . | . . . . Bothacking | -11 -10 -10 -10 ------------ Run | Yrd Mat Min Sub Used RIF Installer . | . . . . Robots Hacked . | . . . . Non-combat . | . . . . Combat . | . . . . Robot Hacks Applied . | . . . . Relay Couplers Released . | . . . . Fabnet Peak Effective % . | . . . . Robots Rewired . | . . . . Allies Hacked . | . . . . Hacks Repelled . | . . . . Allies | -11 -10 -10 -10 -------- Run | Yrd Mat Min Sub Total Allies . | . . . . Largest Group . | . . . . Highest-Rated Group . | . . . . Highest-Rated Ally . | . . . . Total Orders . | . . . . Ally Attacks . | . . . . Total Damage . | . . . . Kills . | . . . . Allies Corrupted . | . . . . Allies Melted . | . . . . Intel | -11 -10 -10 -10 ------- Run | Yrd Mat Min Sub Active Infowar (turns) 3253 | . 1280 623 1350 Seismic 3253 | . 1280 623 1350 Robot Analysis Total 1 | . 1 . . Derelict Logs Recovered 3 | . . 1 2 Drone Launches . | . . . . Drone Recoveries . | . . . . Exploration | -11 -10 -10 -10 ------------- Run | Yrd Mat Min Sub Turns Passed 4047 | 137 1371 623 1916 Spaces Moved 1978 | 54 762 348 814 Core 5 | 5 . . . Treads 1700 | 49 762 348 541 Legs . | . . . . Wheels 273 | . . . 273 Hover . | . . . . Flight . | . . . . Fastest Speed 50 | 50 160 160 150 Average Speed 176 | 149 160 160 200 Slowest Speed 480 | 160 160 160 480 Overloaded Moves . | . . . . Propulsion Burnouts . | . . . . Robots Hopped . | . . . . Potential Cave-ins . | . . . . Cave-ins Triggered . | . . . . Exploration Rate (%) 57 | 5 96 79 51 Regions Visited 3 Branch Regions 2 Pre-discovered Areas 5 | . 2 1 2 Known Exits Taken . | . . . . Unknown Exits Taken 3 | 1 1 1 . Scrap Searched 3 | . . 3 . Spaces Dug 8 | . . . 8 Terrain Destroyed 168 | 1 102 28 37 Melee . | . . . . Projectile . | . . . . AOE 168 | 1 102 28 37 Terrain Rammed . | . . . . Walls Destroyed . | . . . . Machines Disabled . | . . . . Actions | -11 -10 -10 -10 --------- Run | Yrd Mat Min Sub Total 2258 | 76 845 379 958 Wait 37 | . 9 6 22 Move 1975 | 53 761 347 814 Hop . | . . . . Pick Up 37 | 2 17 1 17 Fast Attach 8 | 5 2 . 1 Attach 7 | . 2 . 5 Detach . | . . . . Swap 33 | . 14 5 14 Drop 10 | . 7 1 2 Fire 148 | 16 33 16 83 Melee . | . . . . Ram . | . . . . Kick . | . . . . Crush 3 | . . 3 . Escape Stasis . | . . . . Rewire . | . . . . Trap . | . . . . Miscellaneous . | . . . . Route ------- -11/Scrapyard -10/Materials (discovered 6 exits: *Mat x3 / [*Min x2] / [*Sub]) -10/Mines (discovered 3 exits: *Mat x2 / [*Sub]) -10/Subcaves (discovered 1 exit: [*Mat]) History --------- Turn | Location | Event 12 | -11/Scrapyard | Discovered new exit (range 16) 138 | -11/Scrapyard | Entered Materials 307 | -10/Materials | Build established: Mutant 389 | -10/Materials | Discovered new exit (range 16) 915 | -10/Materials | Discovered new exit (range 15) 1084 | -10/Materials | Discovered new exit (range 11) 1139 | -10/Materials | Discovered new exit (range 9) 1210 | -10/Materials | Discovered new exit (range 5) 1297 | -10/Materials | Discovered new exit (range 12) 1490 | -10/Materials | Learned Materials stockpile data 1509 | -10/Materials | Entered Mines 1510 | -10/Mines | Identified exit to Materials 2096 | -10/Mines | Discovered new exit (range 15) 2132 | -10/Mines | Entered Subcaves 2137 | -10/Subcaves | Learned Materials security intel 2141 | -10/Subcaves | A swath of the cavern ceiling suddenly collapsed 2152 | -10/Subcaves | Learned location of Zion (-7) 2385 | -10/Subcaves | Discovered new exit (range 10) 2578 | -10/Subcaves | Met a Zionite searching for "candidates" 3087 | -10/Subcaves | Core integrity fell below 50% 3538 | -10/Subcaves | Core integrity fell below 20% 4035 | -10/Subcaves | Visited 4L-MR0's lab 4048 | -10/Subcaves | Destroyed by LB-YU0(R) with Subdweller Laser Last Messages --------------- 03688_ Acquired 14 matter. 03691_ Acquired 12 matter. 03746_ Acquired Battle Cannon. 03824_ The unstable cave ceiling collapses. 03867_ Acquired 8 matter. 03878_ Acquired Hvy. Riot Gun. 03879_ Acquired 41 matter. 03882_ Acquired 8 matter. 03885_ Acquired 12 matter. 03891_ Lgt. Nuclear Core destroyed. 03895_ Sub. Laser destroyed. 03898_ S-10 Pest destroyed. 03898_ Destroyed Lgt. Assault Rifle. 03898_ S-10 Pest destroyed. 03902_ Lgt. Ion Engine fries itself beyond repair. 03902_ Flight Unit fries itself beyond repair. 03909_ Lgt. Ion Engine fries itself beyond repair. 04039_ Sub. Laser destroyed. 04042_ LB-YU0(R) Disposable Heat Sink blasted off. 04045_ Subatomizers dissect the Disposable Heat Sink. Map ----- +----------------------------------------------------+ | ?????????????????? ???????? | | ?????????????????? ???????? | | ?????????????????# ??????? | | ????????????????? ??????? | | ????????????????? ??????? | | ????????????????? ??????? | | ????????????????? #??????? | | ?????????????????# ???????? | | ?????????????????# ???????? | | ????????????????## #???????? | | ???????????????## #???????? | | ???????????????# ????????? | | ???????????????# #?####???? | | ??????????????## ### ##??? | | ??????????????# #### | | ??????????????### | | ???##??????????# #### | | ???#*#""#?????## #??# | | ???#"#""#?????# ### #?# | | ???# ""#?#####" ### ## | | ???# X"#?# # ### | | ???# ""#?# # #?? | | ???#" "#?# # #? | | ????" RR#?# #" #? | | ????##R##### ## ####? | | ????#@ #" # ##???? | | ??# % ## ##????? | | ??# < <<<<<< ## #?????? | | ??#< <<%<< <### #?????? | | ??##<< <<<<###? ## #????? | | ???#########???# #?# #???? | | ???????????????? ?? ???? | | ????????????????# ??? ???? | | ????????????????? ????????? | | ????????????????? ????????? | | ????????????????? ??????????? | | ?????????????????????????????? | | ?????????????????????????????? | | ?????????????????????????????? | | ?????????????????????????????? | | ?????????????????????????????? | | ?????????????????????????????? | | ?????????????????????????????? | | ?????????????????????????????? | | ?????????????????????????????? | | ?????????????????????????????? | | ?????????????????????????????? | | ?????????????????????????????? | | ?????????????????????????????? | | ?????????????????????????????? | +----------------------------------------------------+ Best States ------------- Heat Dissipation 35 Energy Generation 14 Energy Capacity 250 Matter Stores 300 Matter Capacity 300 Sight Range 16 Terrain Scan Density 10 Armor Coverage 100 Evasion (%) 40 Recoil Reduction 2 Item Schematics ----------------- None Robot Schematics ------------------ None Fabricated ------------ Nothing Repaired ---------- Nothing Studied --------- None Alien Tech Used ----------------- None Achievements -------------- None Challenges ------------ None Game ------ Seed FieldthrustKineticBotcube Manual? 0 Play Time 00:19:45 Cumulative 997.7 hours Start 2025.11.09 @ 10:28:28 End 2025.11.09 @ 10:51:28 Sessions 1 Manual Loads 0 Difficulty Rogue Special Mode None Game No. 311 Rogue 309 Adventurer 2 Explorer 0 Win Type - Total 71 Types 20/17/16/1/1/1/11/1/1/2 Lore% 97 Gallery% 94 Achievement% 82 Wizard Run 0 Options --------- Layout 0 ASCII 0 Keyboard 1 Movement Numpad Keybinds 0 Fullscreen 1 Font 24/Smallcaps Map View 76x50 Zoom Use 0% Tactical HUD 1 Map Filters NONE Filters NONE Steam 1 RUN: a4506c6c-991c-41a9-b2c0-9e8b1033f0a2